Workbook

Sheet Sheet1
A3: Cap Exp | B3: Unit
A4: Beginning | B4: Date | C4: 2020-01-01 | G4: 1. Get Timelines worked out
A5: End | B5: Date | C5: 2020-12-31 | G5: 2. Start with operation never P&L, BS, CF
A6: Construction Duration | B6: Months | C6: 12 | G6: 3. Put together Cap exp, Rev and Expenses -- Project IRR -- pre-tax
A7: Capexp | B7: m€ | C7: 50 | G7: 4. Put depreciation without IDC and then after-tax Project IRR
A8: Amortization duration | B8: years | C8: 20 | G8: 5. Financing -- Sorces and Uses and Debt Repayment and Debt Balance
G9: 6. Cash Flow waterfall -- define CFADS and Equity Cash Flow to get Equity IRR
A10: Revenues | G10: 7. Resolve Circular Reference -- for IDC
A11: Production | B11: MWH/Year | C11: 100000 | G11: 8. Financial
A12: Electricity Price - 1 | B12: m€/MWH | C12: 60
A13: Electricity Price - 2 | B13: m€/MWH | C13: 35
A14: Part 1 Duration | B14: Years | C14: 10
A15: Inflation Revenues | B15: %/Year | C15: 0.01
A17: Opexp
A18: Beginning | B18: Date | C18: 2021-01-01
A19: End | B19: Date | C19: 2040-01-01
A20: Operation Duration | B20: Years | C20: 20
A21: Total Costs | B21: m€ | C21: 1
A22: Inflation Revenues | B22: %/Year | C22: 0.01
A23: Income Tax | B23: % | C23: 0.3
A25: Financing
A26: Gearing | B26: % | C26: 0.8
A27: Interest Rate | B27: % | C27: 0.03
A28: Debt Tenor | B28: Years | C28: 20

Sheet Inputs
B2: Timing
D3: Beginning | E3: Date | F3: 2020-01-01 | J3: Summary
D4: End | E4: Date | F4: =EOMONTH(F3,F5-1) -> 2020-12-31
D5: Construction Duration | E5: Months | F5: 12 | J5: DSCR | K5: ='Financial Model'!H121 -> 1.014586681
J6: Project Pre-Tax IRR
D7: COD Date | E7: Date | F7: =EDATE(F3,F5) -> 2021-01-01
D8: Operation Duration | E8: Years | F8: 20 | J8: Equity IRR | K8: ='Financial Model'!F119 -> 0.06595979631
D9: End Date | E9: Date | F9: =EDATE(F7,F8*12) -> 2041-01-01
D10: Part 1 Duration | E10: Years | F10: 10
D11: Part 1 Duration End | E11: Date | F11: =EDATE(F7,F10*12) -> 2031-01-01
D13: Months in Period Construction | E13: Months | F13: 1
D14: Months in Period Operations | E14: Months | F14: 12
B16: Operation Assumptions
D17: Production | E17: MWH/Year | F17: 100000
D18: Capexp | E18: m€ | F18: 50
D19: S-Curve | E19: %/Month | F19: =1/F5 -> 0.08333333333
C21: Revenues
D22: Electricity Price - 1 | E22: m€/MWH | F22: 60
D23: Electricity Price - 2 | E23: m€/MWH | F23: 35
D24: Inflation Revenues | E24: %/Year | F24: 0.01 | H24: Assume starts at COD
C26: Opexp
D27: Total Costs | E27: m€ | F27: 1 | H27: Assume that this is Real and in € of COD Date
D28: Inflation Cost | E28: %/Year | F28: 0.01 | H28: Assume starts at COD
B30: Tax Assumptions
D31: Amortization duration | E31: years | F31: 20
D32: Income Tax | E32: % | F32: 0.3
B34: Financing
D35: Gearing | E35: % | F35: 0.8
D36: Interest Rate | E36: % | F36: 0.03
D37: Debt Tenor | E37: Years | F37: 20 | H37: Assume Equal Installment
D39: Level Payment | F39: =PMT(F36,F37,-1) -> 0.0672157076
D41: Start of Repayment | E41: Date | F41: =F7 -> 2021-01-01
D42: End of Repayment | E42: Date | F42: =EDATE(F41,F37*12) -> 2041-01-01

Sheet Financial Model
F1: Driver | G1: Driver | H1: Sum
B2: Time Line
C3: Period | E3: Number | J3: 1 | K3: 2 | L3: 3 | M3: 4 | N3: 5 | O3: 6 | P3: 7 | Q3: 8 | R3: 9 | S3: 10 | T3: 11 | U3: 12 | V3: 13 | W3: 14 | X3: 15 | Y3: 16 | Z3: 17 | AA3: 18 | AB3: 19 | AC3: 20 | AD3: 21 | AE3: 22 | AF3: 23 | AG3: 24 | AH3: 25 | AI3: 26 | AJ3: 27 | AK3: 28 | AL3: 29 | AM3: 30 | AN3: 31 | AO3: 32 | AP3: 33
C4: Pre-COD Period | E4: Flag | F4: =Inputs!F5 -> 12 | H4: =SUM(J4:AP4) -> 12 | J4: =(J3<=$F$4)*1 -> 1 | K4: =(K3<=$F$4)*1 -> 1 | L4: 1 | M4: 1 | N4: 1 | O4: 1 | P4: 1 | Q4: 1 | R4: 1 | S4: 1 | T4: 1 | U4: 1 | V4: 0 | W4: 0 | X4: 0 | Y4: 0 | Z4: 0 | AA4: 0 | AB4: 0 | AC4: 0 | AD4: 0 | AE4: 0 | AF4: 0 | AG4: 0 | AH4: 0 | AI4: 0 | AJ4: 0 | AK4: 0 | AL4: 0 | AM4: 0 | AN4: 0 | AO4: 0 | AP4: 0
C5: Months in Period (Const,oper) | E5: Months | F5: =Inputs!F13 -> 1 | G5: =Inputs!F14 -> 12 | J5: =IF(J4,$F$5,$G$5) -> 1 | K5: =IF(K4,$F$5,$G$5) -> 1 | L5: 1 | M5: 1 | N5: 1 | O5: 1 | P5: 1 | Q5: 1 | R5: 1 | S5: 1 | T5: 1 | U5: 1 | V5: 12 | W5: 12 | X5: 12 | Y5: 12 | Z5: 12 | AA5: 12 | AB5: 12 | AC5: 12 | AD5: 12 | AE5: 12 | AF5: 12 | AG5: 12 | AH5: 12 | AI5: 12 | AJ5: 12 | AK5: 12 | AL5: 12 | AM5: 12 | AN5: 12 | AO5: 12 | AP5: 12
C6: Start of Period | E6: Date | J6: =I7+1 -> 2020-01-01 | K6: =J7+1 -> 2020-02-02 | L6: 2020-03-03 | M6: 2020-04-04 | N6: 2020-05-05 | O6: 2020-06-06 | P6: 2020-07-07 | Q6: 2020-08-08 | R6: 2020-09-09 | S6: 2020-10-10 | T6: 2020-11-11 | U6: 2020-12-12 | V6: 2021-01-13 | W6: 2022-01-14 | X6: 2023-01-15 | Y6: 2024-01-16 | Z6: 2025-01-17 | AA6: 2026-01-18 | AB6: 2027-01-19 | AC6: 2028-01-20 | AD6: 2029-01-21 | AE6: 2030-01-22 | AF6: 2031-01-23 | AG6: 2032-01-24 | AH6: 2033-01-25 | AI6: 2034-01-26 | AJ6: 2035-01-27 | AK6: 2036-01-28 | AL6: 2037-01-29 | AM6: 2038-01-30 | AN6: 2039-01-31 | AO6: 2040-02-01 | AP6: 2041-02-02
C7: End of Period | E7: Date | I7: =Inputs!F3-1 -> 2019-12-31 | J7: =EDATE(J6,J5) -> 2020-02-01 | K7: =EDATE(K6,K5) -> 2020-03-02 | L7: 2020-04-03 | M7: 2020-05-04 | N7: 2020-06-05 | O7: 2020-07-06 | P7: 2020-08-07 | Q7: 2020-09-08 | R7: 2020-10-09 | S7: 2020-11-10 | T7: 2020-12-11 | U7: 2021-01-12 | V7: 2022-01-13 | W7: 2023-01-14 | X7: 2024-01-15 | Y7: 2025-01-16 | Z7: 2026-01-17 | AA7: 2027-01-18 | AB7: 2028-01-19 | AC7: 2029-01-20 | AD7: 2030-01-21 | AE7: 2031-01-22 | AF7: 2032-01-23 | AG7: 2033-01-24 | AH7: 2034-01-25 | AI7: 2035-01-26 | AJ7: 2036-01-27 | AK7: 2037-01-28 | AL7: 2038-01-29 | AM7: 2039-01-30 | AN7: 2040-01-31 | AO7: 2041-02-01 | AP7: 2042-02-02
C8: Operation Flag | E8: Flag | F8: =Inputs!F7 -> 2021-01-01 | G8: =Inputs!F9 -> 2041-01-01 | H8: =SUM(J8:AP8) -> 20 | J8: =AND(J$6>=$F8,J$6<=$G8)*1 -> 0 | K8: =AND(K$6>=$F8,K$6<=$G8)*1 -> 0 | L8: 0 | M8: 0 | N8: 0 | O8: 0 | P8: 0 | Q8: 0 | R8: 0 | S8: 0 | T8: 0 | U8: 0 | V8: 1 | W8: 1 | X8: 1 | Y8: 1 | Z8: 1 | AA8: 1 | AB8: 1 | AC8: 1 | AD8: 1 | AE8: 1 | AF8: 1 | AG8: 1 | AH8: 1 | AI8: 1 | AJ8: 1 | AK8: 1 | AL8: 1 | AM8: 1 | AN8: 1 | AO8: 1 | AP8: 0
C9: Initial Price Flag | E9: Flag | F9: =Inputs!F7 -> 2021-01-01 | G9: =Inputs!F11 -> 2031-01-01 | H9: =SUM(J9:AP9) -> 10 | J9: =AND(J$6>=$F9,J$6<$G9)*1 -> 0 | K9: 0 | L9: 0 | M9: 0 | N9: 0 | O9: 0 | P9: 0 | Q9: 0 | R9: 0 | S9: 0 | T9: 0 | U9: 0 | V9: 1 | W9: 1 | X9: 1 | Y9: 1 | Z9: =AND(Z$6>=$F9,Z$6<$G9)*1 -> 1 | AA9: 1 | AB9: 1 | AC9: 1 | AD9: 1 | AE9: 1 | AF9: 0 | AG9: 0 | AH9: 0 | AI9: 0 | AJ9: 0 | AK9: 0 | AL9: 0 | AM9: 0 | AN9: 0 | AO9: 0 | AP9: 0
C10: Second Price Flag | E10: Flag | F10: =G9 -> 2031-01-01 | G10: =G8 -> 2041-01-01 | H10: 10 | J10: =AND(J$6>=$F10,J$6<=$G10)*1 -> 0 | K10: =AND(K$6>=$F10,K$6<=$G10)*1 -> 0 | L10: 0 | M10: 0 | N10: 0 | O10: 0 | P10: 0 | Q10: 0 | R10: 0 | S10: 0 | T10: 0 | U10: 0 | V10: 0 | W10: 0 | X10: 0 | Y10: 0 | Z10: 0 | AA10: 0 | AB10: 0 | AC10: 0 | AD10: 0 | AE10: 0 | AF10: 1 | AG10: 1 | AH10: 1 | AI10: 1 | AJ10: 1 | AK10: 1 | AL10: 1 | AM10: 1 | AN10: 1 | AO10: 1 | AP10: 0
B12: Operations
C13: Production | E13: MWH/Year | F13: =Inputs!F17 -> 100000 | J13: =$F$13*J8 -> 0 | K13: =$F$13*K8 -> 0 | L13: 0 | M13: 0 | N13: 0 | O13: 0 | P13: 0 | Q13: 0 | R13: 0 | S13: 0 | T13: 0 | U13: 0 | V13: 100000 | W13: 100000 | X13: 100000 | Y13: 100000 | Z13: 100000 | AA13: 100000 | AB13: 100000 | AC13: 100000 | AD13: 100000 | AE13: 100000 | AF13: 100000 | AG13: 100000 | AH13: 100000 | AI13: 100000 | AJ13: 100000 | AK13: 100000 | AL13: 100000 | AM13: 100000 | AN13: 100000 | AO13: 100000 | AP13: 0
B15: Cap Exp
C16: Total Cost | E16: m€ | F16: =Inputs!F18 -> 50 | J16: =$F$16 -> 50 | K16: =$F$16 -> 50 | L16: 50 | M16: 50 | N16: 50 | O16: 50 | P16: 50 | Q16: 50 | R16: 50 | S16: 50 | T16: 50 | U16: 50 | V16: 50 | W16: 50 | X16: 50 | Y16: 50 | Z16: 50 | AA16: 50 | AB16: 50 | AC16: 50 | AD16: 50 | AE16: 50 | AF16: 50 | AG16: 50 | AH16: 50 | AI16: 50 | AJ16: 50 | AK16: 50 | AL16: 50 | AM16: 50 | AN16: 50 | AO16: 50 | AP16: 50
C17: S-curve | E17: % | F17: =Inputs!F19 -> 0.08333333333 | H17: =SUM(J17:AP17) -> 1 | J17: =$F$17*J4 -> 0.08333333333 | K17: =$F$17*K4 -> 0.08333333333 | L17: 0.08333333333 | M17: 0.08333333333 | N17: 0.08333333333 | O17: 0.08333333333 | P17: 0.08333333333 | Q17: 0.08333333333 | R17: 0.08333333333 | S17: 0.08333333333 | T17: 0.08333333333 | U17: 0.08333333333 | V17: 0 | W17: 0 | X17: 0 | Y17: 0 | Z17: 0 | AA17: 0 | AB17: 0 | AC17: 0 | AD17: 0 | AE17: 0 | AF17: 0 | AG17: 0 | AH17: 0 | AI17: 0 | AJ17: 0 | AK17: 0 | AL17: 0 | AM17: 0 | AN17: 0 | AO17: 0 | AP17: 0
D18: Total Cap Exp | E18: m€ | J18: =J16*J17 -> 4.166666667 | K18: =K16*K17 -> 4.166666667 | L18: 4.166666667 | M18: 4.166666667 | N18: 4.166666667 | O18: 4.166666667 | P18: 4.166666667 | Q18: 4.166666667 | R18: 4.166666667 | S18: 4.166666667 | T18: 4.166666667 | U18: 4.166666667 | V18: 0 | W18: 0 | X18: 0 | Y18: 0 | Z18: 0 | AA18: 0 | AB18: 0 | AC18: 0 | AD18: 0 | AE18: 0 | AF18: 0 | AG18: 0 | AH18: 0 | AI18: 0 | AJ18: 0 | AK18: 0 | AL18: 0 | AM18: 0 | AN18: 0 | AO18: 0 | AP18: 0
B20: Revenues
C21: Inflation Rate | E21: % p.a. | F21: =Inputs!F24 -> 0.01 | J21: =$F$21*J8 -> 0 | K21: =$F$21*K8 -> 0 | L21: 0 | M21: 0 | N21: 0 | O21: 0 | P21: 0 | Q21: 0 | R21: 0 | S21: 0 | T21: 0 | U21: 0 | V21: 0.01 | W21: 0.01 | X21: 0.01 | Y21: 0.01 | Z21: 0.01 | AA21: 0.01 | AB21: 0.01 | AC21: 0.01 | AD21: 0.01 | AE21: 0.01 | AF21: 0.01 | AG21: 0.01 | AH21: 0.01 | AI21: 0.01 | AJ21: 0.01 | AK21: 0.01 | AL21: 0.01 | AM21: 0.01 | AN21: 0.01 | AO21: 0.01 | AP21: 0
C22: Inflation Index | E22: Index | I22: 1 | J22: =I22*(1+J21) -> 1 | K22: =J22*(1+K21) -> 1 | L22: 1 | M22: 1 | N22: 1 | O22: 1 | P22: 1 | Q22: 1 | R22: 1 | S22: 1 | T22: 1 | U22: 1 | V22: 1.01 | W22: 1.0201 | X22: 1.030301 | Y22: 1.04060401 | Z22: 1.05101005 | AA22: 1.061520151 | AB22: 1.072135352 | AC22: 1.082856706 | AD22: 1.093685273 | AE22: 1.104622125 | AF22: 1.115668347 | AG22: 1.12682503 | AH22: 1.13809328 | AI22: 1.149474213 | AJ22: 1.160968955 | AK22: 1.172578645 | AL22: 1.184304431 | AM22: 1.196147476 | AN22: 1.20810895 | AO22: 1.22019004 | AP22: 1.22019004
C23: Price Period 1 | E23: m€/MWH | F23: =Inputs!F22 -> 60 | J23: =$F$23*J22*J9 -> 0 | K23: =$F$23*K22*K9 -> 0 | L23: 0 | M23: 0 | N23: 0 | O23: 0 | P23: 0 | Q23: 0 | R23: 0 | S23: 0 | T23: 0 | U23: 0 | V23: 60.6 | W23: 61.206 | X23: 61.81806 | Y23: 62.4362406 | Z23: 63.06060301 | AA23: 63.69120904 | AB23: 64.32812113 | AC23: 64.97140234 | AD23: 65.62111636 | AE23: 66.27732752 | AF23: 0 | AG23: 0 | AH23: 0 | AI23: 0 | AJ23: 0 | AK23: 0 | AL23: 0 | AM23: 0 | AN23: 0 | AO23: 0 | AP23: 0
C24: Price Period 2 | E24: m€/MWH | F24: =Inputs!F23 -> 35 | J24: =$F$24*J22*J10 -> 0 | K24: =$F$24*K22*K10 -> 0 | L24: 0 | M24: 0 | N24: 0 | O24: 0 | P24: 0 | Q24: 0 | R24: 0 | S24: 0 | T24: 0 | U24: 0 | V24: 0 | W24: 0 | X24: 0 | Y24: 0 | Z24: 0 | AA24: 0 | AB24: 0 | AC24: 0 | AD24: 0 | AE24: 0 | AF24: 39.04839213 | AG24: 39.43887605 | AH24: 39.83326482 | AI24: 40.23159746 | AJ24: 40.63391344 | AK24: 41.04025257 | AL24: 41.4506551 | AM24: 41.86516165 | AN24: 42.28381327 | AO24: 42.7066514 | AP24: 0
C26: Revenues for Period 1 | E26: m€ | J26: =J23*J13/10^6 -> 0 | K26: =K23*K13/10^6 -> 0 | L26: 0 | M26: 0 | N26: 0 | O26: 0 | P26: 0 | Q26: 0 | R26: 0 | S26: 0 | T26: 0 | U26: 0 | V26: 6.06 | W26: 6.1206 | X26: 6.181806 | Y26: 6.24362406 | Z26: 6.306060301 | AA26: 6.369120904 | AB26: 6.432812113 | AC26: 6.497140234 | AD26: 6.562111636 | AE26: 6.627732752 | AF26: 0 | AG26: 0 | AH26: 0 | AI26: 0 | AJ26: 0 | AK26: 0 | AL26: 0 | AM26: 0 | AN26: 0 | AO26: 0 | AP26: 0
C27: Revenues for Period 2 | E27: m€ | J27: =J24*J13/10^6 -> 0 | K27: =K24*K13/10^6 -> 0 | L27: 0 | M27: 0 | N27: 0 | O27: 0 | P27: 0 | Q27: 0 | R27: 0 | S27: 0 | T27: 0 | U27: 0 | V27: 0 | W27: 0 | X27: 0 | Y27: 0 | Z27: 0 | AA27: 0 | AB27: 0 | AC27: 0 | AD27: 0 | AE27: 0 | AF27: 3.904839213 | AG27: 3.943887605 | AH27: 3.983326482 | AI27: 4.023159746 | AJ27: 4.063391344 | AK27: 4.104025257 | AL27: 4.14506551 | AM27: 4.186516165 | AN27: 4.228381327 | AO27: 4.27066514 | AP27: 0
D28: Total Revenues | E28: m€ | J28: =SUM(J26:J27) -> 0 | K28: =SUM(K26:K27) -> 0 | L28: 0 | M28: 0 | N28: 0 | O28: 0 | P28: 0 | Q28: 0 | R28: 0 | S28: 0 | T28: 0 | U28: 0 | V28: 6.06 | W28: 6.1206 | X28: 6.181806 | Y28: 6.24362406 | Z28: 6.306060301 | AA28: 6.369120904 | AB28: 6.432812113 | AC28: 6.497140234 | AD28: 6.562111636 | AE28: 6.627732752 | AF28: 3.904839213 | AG28: 3.943887605 | AH28: 3.983326482 | AI28: 4.023159746 | AJ28: 4.063391344 | AK28: 4.104025257 | AL28: 4.14506551 | AM28: 4.186516165 | AN28: 4.228381327 | AO28: 4.27066514 | AP28: 0
B30: Op Exp
C31: Inflation Rate | E31: % p.a. | F31: =Inputs!F28 -> 0.01 | J31: =$F$31*J8 -> 0 | K31: =$F$31*K8 -> 0 | L31: 0 | M31: 0 | N31: 0 | O31: 0 | P31: 0 | Q31: 0 | R31: 0 | S31: 0 | T31: 0 | U31: 0 | V31: 0.01 | W31: 0.01 | X31: 0.01 | Y31: 0.01 | Z31: 0.01 | AA31: 0.01 | AB31: 0.01 | AC31: 0.01 | AD31: 0.01 | AE31: 0.01 | AF31: 0.01 | AG31: 0.01 | AH31: 0.01 | AI31: 0.01 | AJ31: 0.01 | AK31: 0.01 | AL31: 0.01 | AM31: 0.01 | AN31: 0.01 | AO31: 0.01 | AP31: 0
C32: Inflation Index | E32: Index | I32: 1 | J32: =I32*(1+J31) -> 1 | K32: =J32*(1+K31) -> 1 | L32: 1 | M32: 1 | N32: 1 | O32: 1 | P32: 1 | Q32: 1 | R32: 1 | S32: 1 | T32: 1 | U32: 1 | V32: 1.01 | W32: 1.0201 | X32: 1.030301 | Y32: 1.04060401 | Z32: 1.05101005 | AA32: 1.061520151 | AB32: 1.072135352 | AC32: 1.082856706 | AD32: 1.093685273 | AE32: 1.104622125 | AF32: 1.115668347 | AG32: 1.12682503 | AH32: 1.13809328 | AI32: 1.149474213 | AJ32: 1.160968955 | AK32: 1.172578645 | AL32: 1.184304431 | AM32: 1.196147476 | AN32: 1.20810895 | AO32: 1.22019004 | AP32: 1.22019004
D33: Operation Expense | E33: m€ | F33: =Inputs!F27 -> 1 | J33: =$F$33*J32*J8 -> 0 | K33: =$F$33*K32*K8 -> 0 | L33: 0 | M33: 0 | N33: 0 | O33: 0 | P33: 0 | Q33: 0 | R33: 0 | S33: 0 | T33: 0 | U33: 0 | V33: 1.01 | W33: 1.0201 | X33: 1.030301 | Y33: 1.04060401 | Z33: 1.05101005 | AA33: 1.061520151 | AB33: 1.072135352 | AC33: 1.082856706 | AD33: 1.093685273 | AE33: 1.104622125 | AF33: 1.115668347 | AG33: 1.12682503 | AH33: 1.13809328 | AI33: 1.149474213 | AJ33: 1.160968955 | AK33: 1.172578645 | AL33: 1.184304431 | AM33: 1.196147476 | AN33: 1.20810895 | AO33: 1.22019004 | AP33: 0
B36: Pre-tax Free Cash Flow (EBITDA and Cap Exp)
C37: EBITDA | E37: m€ | H37: =SUM(J37:AP37) -> 82.01507175 | J37: =J28-J33 -> 0 | K37: =K28-K33 -> 0 | L37: 0 | M37: 0 | N37: 0 | O37: 0 | P37: 0 | Q37: 0 | R37: 0 | S37: 0 | T37: 0 | U37: 0 | V37: 5.05 | W37: 5.1005 | X37: 5.151505 | Y37: 5.20302005 | Z37: 5.255050251 | AA37: 5.307600753 | AB37: 5.360676761 | AC37: 5.414283528 | AD37: 5.468426363 | AE37: 5.523110627 | AF37: 2.789170867 | AG37: 2.817062575 | AH37: 2.845233201 | AI37: 2.873685533 | AJ37: 2.902422388 | AK37: 2.931446612 | AL37: 2.960761078 | AM37: 2.990368689 | AN37: 3.020272376 | AO37: 3.0504751 | AP37: 0
C38: Cap Exp | E38: m€ | H38: =SUM(J38:AP38) -> 50 | J38: =J18 -> 4.166666667 | K38: =K18 -> 4.166666667 | L38: 4.166666667 | M38: 4.166666667 | N38: 4.166666667 | O38: 4.166666667 | P38: 4.166666667 | Q38: 4.166666667 | R38: 4.166666667 | S38: 4.166666667 | T38: 4.166666667 | U38: 4.166666667 | V38: 0 | W38: 0 | X38: 0 | Y38: 0 | Z38: 0 | AA38: 0 | AB38: 0 | AC38: 0 | AD38: 0 | AE38: 0 | AF38: 0 | AG38: 0 | AH38: 0 | AI38: 0 | AJ38: 0 | AK38: 0 | AL38: 0 | AM38: 0 | AN38: 0 | AO38: 0 | AP38: 0
D39: Pre-tax Free Cash Flow | E39: m€ | J39: =J37-J38 -> -4.166666667 | K39: =K37-K38 -> -4.166666667 | L39: -4.166666667 | M39: -4.166666667 | N39: -4.166666667 | O39: -4.166666667 | P39: -4.166666667 | Q39: -4.166666667 | R39: -4.166666667 | S39: -4.166666667 | T39: -4.166666667 | U39: -4.166666667 | V39: 5.05 | W39: 5.1005 | X39: 5.151505 | Y39: 5.20302005 | Z39: 5.255050251 | AA39: 5.307600753 | AB39: 5.360676761 | AC39: 5.414283528 | AD39: 5.468426363 | AE39: 5.523110627 | AF39: 2.789170867 | AG39: 2.817062575 | AH39: 2.845233201 | AI39: 2.873685533 | AJ39: 2.902422388 | AK39: 2.931446612 | AL39: 2.960761078 | AM39: 2.990368689 | AN39: 3.020272376 | AO39: 3.0504751 | AP39: 0
C41: Pre-tax Project IRR | E41: % | F41: =XIRR(J39:AP39,J7:AP7) -> 0.05779506862
B43: Depreciation and (EBIT, Taxes on Operations, After FCF)
C44: Plant Balance | E44: m€ | J44: =I44+J38 -> 4.166666667 | K44: =J44+K38 -> 8.333333333 | L44: 12.5 | M44: 16.66666667 | N44: 20.83333333 | O44: 25 | P44: 29.16666667 | Q44: 33.33333333 | R44: 37.5 | S44: 41.66666667 | T44: 45.83333333 | U44: 50 | V44: 50 | W44: 50 | X44: 50 | Y44: 50 | Z44: 50 | AA44: 50 | AB44: 50 | AC44: 50 | AD44: 50 | AE44: 50 | AF44: 50 | AG44: 50 | AH44: 50 | AI44: 50 | AJ44: 50 | AK44: 50 | AL44: 50 | AM44: 50 | AN44: 50 | AO44: 50 | AP44: 50
C45: Depreciation Rate | E45: % | F45: =1/Inputs!F31 -> 0.05 | H45: =SUM(J45:AP45) -> 1 | J45: =$F$45*J8 -> 0 | K45: =$F$45*K8 -> 0 | L45: 0 | M45: 0 | N45: 0 | O45: 0 | P45: 0 | Q45: 0 | R45: 0 | S45: 0 | T45: 0 | U45: 0 | V45: 0.05 | W45: 0.05 | X45: 0.05 | Y45: 0.05 | Z45: 0.05 | AA45: 0.05 | AB45: 0.05 | AC45: 0.05 | AD45: 0.05 | AE45: 0.05 | AF45: 0.05 | AG45: 0.05 | AH45: 0.05 | AI45: 0.05 | AJ45: 0.05 | AK45: 0.05 | AL45: 0.05 | AM45: 0.05 | AN45: 0.05 | AO45: 0.05 | AP45: 0
C46: Depreciation Expense | E46: m€ | J46: =J44*J45 -> 0 | K46: =K44*K45 -> 0 | L46: 0 | M46: 0 | N46: 0 | O46: 0 | P46: 0 | Q46: 0 | R46: 0 | S46: 0 | T46: 0 | U46: 0 | V46: 2.5 | W46: 2.5 | X46: 2.5 | Y46: 2.5 | Z46: 2.5 | AA46: 2.5 | AB46: 2.5 | AC46: 2.5 | AD46: 2.5 | AE46: 2.5 | AF46: 2.5 | AG46: 2.5 | AH46: 2.5 | AI46: 2.5 | AJ46: 2.5 | AK46: 2.5 | AL46: 2.5 | AM46: 2.5 | AN46: 2.5 | AO46: 2.5 | AP46: 0
C47: Accumulated Depreciation | E47: m€ | J47: =I47+J46 -> 0 | K47: =J47+K46 -> 0 | L47: 0 | M47: 0 | N47: 0 | O47: 0 | P47: 0 | Q47: 0 | R47: 0 | S47: 0 | T47: 0 | U47: 0 | V47: 2.5 | W47: 5 | X47: 7.5 | Y47: 10 | Z47: 12.5 | AA47: 15 | AB47: 17.5 | AC47: 20 | AD47: 22.5 | AE47: 25 | AF47: 27.5 | AG47: 30 | AH47: 32.5 | AI47: 35 | AJ47: 37.5 | AK47: 40 | AL47: 42.5 | AM47: 45 | AN47: 47.5 | AO47: 50 | AP47: 50
C49: EBITDA | E49: m€ | J49: =J37 -> 0 | K49: =K37 -> 0 | L49: 0 | M49: 0 | N49: 0 | O49: 0 | P49: 0 | Q49: 0 | R49: 0 | S49: 0 | T49: 0 | U49: 0 | V49: 5.05 | W49: 5.1005 | X49: 5.151505 | Y49: 5.20302005 | Z49: 5.255050251 | AA49: 5.307600753 | AB49: 5.360676761 | AC49: 5.414283528 | AD49: 5.468426363 | AE49: 5.523110627 | AF49: 2.789170867 | AG49: 2.817062575 | AH49: 2.845233201 | AI49: 2.873685533 | AJ49: 2.902422388 | AK49: 2.931446612 | AL49: 2.960761078 | AM49: 2.990368689 | AN49: 3.020272376 | AO49: 3.0504751 | AP49: 0
C50: Less: Depreciation not Distorted by Financing | E50: m€ | J50: =J46 -> 0 | K50: =K46 -> 0 | L50: 0 | M50: 0 | N50: 0 | O50: 0 | P50: 0 | Q50: 0 | R50: 0 | S50: 0 | T50: 0 | U50: 0 | V50: 2.5 | W50: 2.5 | X50: 2.5 | Y50: 2.5 | Z50: 2.5 | AA50: 2.5 | AB50: 2.5 | AC50: 2.5 | AD50: 2.5 | AE50: 2.5 | AF50: 2.5 | AG50: 2.5 | AH50: 2.5 | AI50: 2.5 | AJ50: 2.5 | AK50: 2.5 | AL50: 2.5 | AM50: 2.5 | AN50: 2.5 | AO50: 2.5 | AP50: 0
C51: EBIT | E51: m€ | J51: =J49-J50 -> 0 | K51: =K49-K50 -> 0 | L51: 0 | M51: 0 | N51: 0 | O51: 0 | P51: 0 | Q51: 0 | R51: 0 | S51: 0 | T51: 0 | U51: 0 | V51: 2.55 | W51: 2.6005 | X51: 2.651505 | Y51: 2.70302005 | Z51: 2.755050251 | AA51: 2.807600753 | AB51: 2.860676761 | AC51: 2.914283528 | AD51: 2.968426363 | AE51: 3.023110627 | AF51: 0.2891708667 | AG51: 0.3170625753 | AH51: 0.3452332011 | AI51: 0.3736855331 | AJ51: 0.4024223884 | AK51: 0.4314466123 | AL51: 0.4607610784 | AM51: 0.4903686892 | AN51: 0.5202723761 | AO51: 0.5504750999 | AP51: 0
C52: Taxes on EBIT | E52: m€ | F52: =Inputs!F32 -> 0.3 | J52: =J51*$F$52 -> 0 | K52: =K51*$F$52 -> 0 | L52: 0 | M52: 0 | N52: 0 | O52: 0 | P52: 0 | Q52: 0 | R52: 0 | S52: 0 | T52: 0 | U52: 0 | V52: 0.765 | W52: 0.78015 | X52: 0.7954515 | Y52: 0.810906015 | Z52: 0.8265150752 | AA52: 0.8422802259 | AB52: 0.8582030282 | AC52: 0.8742850584 | AD52: 0.890527909 | AE52: 0.9069331881 | AF52: 0.08675126 | AG52: 0.0951187726 | AH52: 0.1035699603 | AI52: 0.1121056599 | AJ52: 0.1207267165 | AK52: 0.1294339837 | AL52: 0.1382283235 | AM52: 0.1471106068 | AN52: 0.1560817128 | AO52: 0.16514253 | AP52: 0
C54: Pre-tax Cash Flow | E54: m€ | J54: =J39 -> -4.166666667 | K54: =K39 -> -4.166666667 | L54: -4.166666667 | M54: -4.166666667 | N54: -4.166666667 | O54: -4.166666667 | P54: -4.166666667 | Q54: -4.166666667 | R54: -4.166666667 | S54: -4.166666667 | T54: -4.166666667 | U54: -4.166666667 | V54: 5.05 | W54: 5.1005 | X54: 5.151505 | Y54: 5.20302005 | Z54: 5.255050251 | AA54: 5.307600753 | AB54: 5.360676761 | AC54: 5.414283528 | AD54: 5.468426363 | AE54: 5.523110627 | AF54: 2.789170867 | AG54: 2.817062575 | AH54: 2.845233201 | AI54: 2.873685533 | AJ54: 2.902422388 | AK54: 2.931446612 | AL54: 2.960761078 | AM54: 2.990368689 | AN54: 3.020272376 | AO54: 3.0504751 | AP54: 0
C55: After-tax Cash Flow | E55: m€ | J55: =J54-J52 -> -4.166666667 | K55: =K54-K52 -> -4.166666667 | L55: -4.166666667 | M55: -4.166666667 | N55: -4.166666667 | O55: -4.166666667 | P55: -4.166666667 | Q55: -4.166666667 | R55: -4.166666667 | S55: -4.166666667 | T55: -4.166666667 | U55: -4.166666667 | V55: 4.285 | W55: 4.32035 | X55: 4.3560535 | Y55: 4.392114035 | Z55: 4.428535175 | AA55: 4.465320527 | AB55: 4.502473732 | AC55: 4.53999847 | AD55: 4.577898454 | AE55: 4.616177439 | AF55: 2.702419607 | AG55: 2.721943803 | AH55: 2.741663241 | AI55: 2.761579873 | AJ55: 2.781695672 | AK55: 2.802012629 | AL55: 2.822532755 | AM55: 2.843258082 | AN55: 2.864190663 | AO55: 2.88533257 | AP55: 0
C57: After-tax Project IRR | E57: % | F57: =XIRR(J55:AP55,J7:AP7) -> 0.04058591425
B59: Uses and Sorces of Funds
C60: Uses of Funds | H60: Fixed | I60: Calc | J60: Difference
D61: Cap Exp | E61: m€ | G61: =H38 -> 50
D62: IDC | E62: m€ | G62: =H62 -> 7.157638157 | H62: 7.157638157 | I62: =H72 -> 7.157638157 | J62: =H62-I62 -> 0
D63: Total | E63: m€ | G63: =G61+G62 -> 57.15763816
C65: Sources of Funds
D66: Debt | E66: m€ | F66: =Inputs!F35 -> 0.8 | G66: =F66*G63 -> 45.72611053
D67: Equity | E67: m€ | G67: =G63-G66 -> 11.43152763
D68: Total | E68: m€ | G68: =SUM(G66:G67) -> 57.15763816
B70: Construction Financing
D71: Cap Exp | E71: m€ | H71: =SUM(J71:AP71) -> 50 | J71: =J18 -> 4.166666667 | K71: =K18 -> 4.166666667 | L71: 4.166666667 | M71: 4.166666667 | N71: 4.166666667 | O71: 4.166666667 | P71: 4.166666667 | Q71: 4.166666667 | R71: 4.166666667 | S71: 4.166666667 | T71: 4.166666667 | U71: 4.166666667 | V71: 0 | W71: 0 | X71: 0 | Y71: 0 | Z71: 0 | AA71: 0 | AB71: 0 | AC71: 0 | AD71: 0 | AE71: 0 | AF71: 0 | AG71: 0 | AH71: 0 | AI71: 0 | AJ71: 0 | AK71: 0 | AL71: 0 | AM71: 0 | AN71: 0 | AO71: 0 | AP71: 0
D72: IDC | E72: m€ | H72: =SUM(J72:AP72) -> 7.157638157 | J72: =J89 -> 0 | K72: =K89 -> 0.1 | L72: 0.2024 | M72: 0.3072576 | N72: 0.4146317824 | O72: 0.5245829452 | P72: 0.6371729359 | Q72: 0.7524650863 | R72: 0.8705242484 | S72: 0.9914168304 | T72: 1.115210834 | U72: 1.241975894 | V72: 0 | W72: 0 | X72: 0 | Y72: 0 | Z72: 0 | AA72: 0 | AB72: 0 | AC72: 0 | AD72: 0 | AE72: 0 | AF72: 0 | AG72: 0 | AH72: 0 | AI72: 0 | AJ72: 0 | AK72: 0 | AL72: 0 | AM72: 0 | AN72: 0 | AO72: 0 | AP72: 0
D73: Total | E73: m€ | H73: 57.15763816 | J73: =SUM(J71:J72) -> 4.166666667 | K73: =SUM(K71:K72) -> 4.266666667 | L73: 4.369066667 | M73: 4.473924267 | N73: 4.581298449 | O73: 4.691249612 | P73: 4.803839603 | Q73: 4.919131753 | R73: 5.037190915 | S73: 5.158083497 | T73: 5.281877501 | U73: 5.408642561 | V73: 0 | W73: 0 | X73: 0 | Y73: 0 | Z73: 0 | AA73: 0 | AB73: 0 | AC73: 0 | AD73: 0 | AE73: 0 | AF73: 0 | AG73: 0 | AH73: 0 | AI73: 0 | AJ73: 0 | AK73: 0 | AL73: 0 | AM73: 0 | AN73: 0 | AO73: 0 | AP73: 0
D75: Debt | E75: m€ | F75: =F66 -> 0.8 | J75: =J73*$F$75 -> 3.333333333 | K75: =K73*$F$75 -> 3.413333333 | L75: 3.495253333 | M75: 3.579139413 | N75: 3.665038759 | O75: 3.752999689 | P75: 3.843071682 | Q75: 3.935305402 | R75: 4.029752732 | S75: 4.126466798 | T75: 4.225502001 | U75: 4.326914049 | V75: 0 | W75: 0 | X75: 0 | Y75: 0 | Z75: 0 | AA75: 0 | AB75: 0 | AC75: 0 | AD75: 0 | AE75: 0 | AF75: 0 | AG75: 0 | AH75: 0 | AI75: 0 | AJ75: 0 | AK75: 0 | AL75: 0 | AM75: 0 | AN75: 0 | AO75: 0 | AP75: 0
D76: Equity | E76: m€ | F76: =1-F75 -> 0.2 | J76: =J73-J75 -> 0.8333333333 | K76: =K73-K75 -> 0.8533333333 | L76: 0.8738133333 | M76: 0.8947848533 | N76: 0.9162596898 | O76: 0.9382499224 | P76: 0.9607679205 | Q76: 0.9838263506 | R76: 1.007438183 | S76: 1.031616699 | T76: 1.0563755 | U76: 1.081728512 | V76: 0 | W76: 0 | X76: 0 | Y76: 0 | Z76: 0 | AA76: 0 | AB76: 0 | AC76: 0 | AD76: 0 | AE76: 0 | AF76: 0 | AG76: 0 | AH76: 0 | AI76: 0 | AJ76: 0 | AK76: 0 | AL76: 0 | AM76: 0 | AN76: 0 | AO76: 0 | AP76: 0
D77: Total | E77: m€ | J77: =SUM(J75:J76) -> 4.166666667 | K77: =SUM(K75:K76) -> 4.266666667 | L77: 4.369066667 | M77: 4.473924267 | N77: 4.581298449 | O77: 4.691249612 | P77: 4.803839603 | Q77: 4.919131753 | R77: 5.037190915 | S77: 5.158083497 | T77: 5.281877501 | U77: 5.408642561 | V77: 0 | W77: 0 | X77: 0 | Y77: 0 | Z77: 0 | AA77: 0 | AB77: 0 | AC77: 0 | AD77: 0 | AE77: 0 | AF77: 0 | AG77: 0 | AH77: 0 | AI77: 0 | AJ77: 0 | AK77: 0 | AL77: 0 | AM77: 0 | AN77: 0 | AO77: 0 | AP77: 0
B80: Debt Balance
C81: Debt Repayment Flag | E81: Flag | F81: =Inputs!F41 -> 2021-01-01 | G81: =Inputs!F42 -> 2041-01-01 | H81: =SUM(J81:AP81) -> 20 | J81: =AND(J6>=$F$81,J6<=$G$81)*1 -> 0 | K81: =AND(K6>=$F$81,K6<=$G$81)*1 -> 0 | L81: 0 | M81: 0 | N81: 0 | O81: 0 | P81: 0 | Q81: 0 | R81: 0 | S81: 0 | T81: 0 | U81: 0 | V81: 1 | W81: 1 | X81: 1 | Y81: 1 | Z81: 1 | AA81: 1 | AB81: 1 | AC81: 1 | AD81: 1 | AE81: 1 | AF81: 1 | AG81: 1 | AH81: 1 | AI81: 1 | AJ81: 1 | AK81: 1 | AL81: 1 | AM81: 1 | AN81: 1 | AO81: 1 | AP81: 0
C82: Debt Repayment | E82: m€ | F82: =G66 -> 45.72611053 | G82: =F82/H81 -> 2.286305526 | J82: =$G$82*J81 -> 0 | K82: =$G$82*K81 -> 0 | L82: 0 | M82: 0 | N82: 0 | O82: 0 | P82: 0 | Q82: 0 | R82: 0 | S82: 0 | T82: 0 | U82: 0 | V82: 2.286305526 | W82: 2.286305526 | X82: 2.286305526 | Y82: 2.286305526 | Z82: 2.286305526 | AA82: 2.286305526 | AB82: 2.286305526 | AC82: 2.286305526 | AD82: 2.286305526 | AE82: 2.286305526 | AF82: 2.286305526 | AG82: 2.286305526 | AH82: 2.286305526 | AI82: 2.286305526 | AJ82: 2.286305526 | AK82: 2.286305526 | AL82: 2.286305526 | AM82: 2.286305526 | AN82: 2.286305526 | AO82: 2.286305526 | AP82: 0
C84: Opening Balance | E84: m€ | J84: =I87 -> 0 | K84: =J87 -> 3.333333333 | L84: 6.746666667 | M84: 10.24192 | N84: 13.82105941 | O84: 17.48609817 | P84: 21.23909786 | Q84: 25.08216954 | R84: 29.01747495 | S84: 33.04722768 | T84: 37.17369448 | U84: 41.39919648 | V84: 45.72611053 | W84: 43.439805 | X84: 41.15349947 | Y84: 38.86719395 | Z84: 36.58088842 | AA84: 34.29458289 | AB84: 32.00827737 | AC84: 29.72197184 | AD84: 27.43566632 | AE84: 25.14936079 | AF84: 22.86305526 | AG84: 20.57674974 | AH84: 18.29044421 | AI84: 16.00413868 | AJ84: 13.71783316 | AK84: 11.43152763 | AL84: 9.145222105 | AM84: 6.858916579 | AN84: 4.572611053 | AO84: 2.286305526 | AP84: 0
C85: Add: Draws | E85: m€ | J85: =J75 -> 3.333333333 | K85: =K75 -> 3.413333333 | L85: 3.495253333 | M85: 3.579139413 | N85: 3.665038759 | O85: 3.752999689 | P85: 3.843071682 | Q85: 3.935305402 | R85: 4.029752732 | S85: 4.126466798 | T85: 4.225502001 | U85: 4.326914049 | V85: 0 | W85: 0 | X85: 0 | Y85: 0 | Z85: 0 | AA85: 0 | AB85: 0 | AC85: 0 | AD85: 0 | AE85: 0 | AF85: 0 | AG85: 0 | AH85: 0 | AI85: 0 | AJ85: 0 | AK85: 0 | AL85: 0 | AM85: 0 | AN85: 0 | AO85: 0 | AP85: 0
C86: Less: Repayment | E86: m€ | J86: =J82 -> 0 | K86: =K82 -> 0 | L86: 0 | M86: 0 | N86: 0 | O86: 0 | P86: 0 | Q86: 0 | R86: 0 | S86: 0 | T86: 0 | U86: 0 | V86: 2.286305526 | W86: 2.286305526 | X86: 2.286305526 | Y86: 2.286305526 | Z86: 2.286305526 | AA86: 2.286305526 | AB86: 2.286305526 | AC86: 2.286305526 | AD86: 2.286305526 | AE86: 2.286305526 | AF86: 2.286305526 | AG86: 2.286305526 | AH86: 2.286305526 | AI86: 2.286305526 | AJ86: 2.286305526 | AK86: 2.286305526 | AL86: 2.286305526 | AM86: 2.286305526 | AN86: 2.286305526 | AO86: 2.286305526 | AP86: 0
C87: Closing | E87: m€ | J87: =J84+J85-J86 -> 3.333333333 | K87: =K84+K85-K86 -> 6.746666667 | L87: 10.24192 | M87: 13.82105941 | N87: 17.48609817 | O87: 21.23909786 | P87: 25.08216954 | Q87: 29.01747495 | R87: 33.04722768 | S87: 37.17369448 | T87: 41.39919648 | U87: 45.72611053 | V87: 43.439805 | W87: 41.15349947 | X87: 38.86719395 | Y87: 36.58088842 | Z87: 34.29458289 | AA87: 32.00827737 | AB87: 29.72197184 | AC87: 27.43566632 | AD87: 25.14936079 | AE87: 22.86305526 | AF87: 20.57674974 | AG87: 18.29044421 | AH87: 16.00413868 | AI87: 13.71783316 | AJ87: 11.43152763 | AK87: 9.145222105 | AL87: 6.858916579 | AM87: 4.572611053 | AN87: 2.286305526 | AO87: 0 | AP87: 0
C88: Interest | E88: m€ | F88: =Inputs!F36 -> 0.03 | J88: =$F$88*J84 -> 0 | K88: =$F$88*K84 -> 0.1 | L88: 0.2024 | M88: 0.3072576 | N88: 0.4146317824 | O88: 0.5245829452 | P88: 0.6371729359 | Q88: 0.7524650863 | R88: 0.8705242484 | S88: 0.9914168304 | T88: 1.115210834 | U88: 1.241975894 | V88: 1.371783316 | W88: 1.30319415 | X88: 1.234604984 | Y88: 1.166015818 | Z88: 1.097426653 | AA88: 1.028837487 | AB88: 0.960248321 | AC88: 0.8916591553 | AD88: 0.8230699895 | AE88: 0.7544808237 | AF88: 0.6858916579 | AG88: 0.6173024921 | AH88: 0.5487133263 | AI88: 0.4801241605 | AJ88: 0.4115349947 | AK88: 0.3429458289 | AL88: 0.2743566632 | AM88: 0.2057674974 | AN88: 0.1371783316 | AO88: 0.06858916579 | AP88: 0
C89: Interest During Construction | E89: m€ | H89: =SUM(J89:AP89) -> 7.157638157 | J89: =J88*J4 -> 0 | K89: =K88*K4 -> 0.1 | L89: 0.2024 | M89: 0.3072576 | N89: 0.4146317824 | O89: 0.5245829452 | P89: 0.6371729359 | Q89: 0.7524650863 | R89: 0.8705242484 | S89: 0.9914168304 | T89: 1.115210834 | U89: 1.241975894 | V89: 0 | W89: 0 | X89: 0 | Y89: 0 | Z89: 0 | AA89: 0 | AB89: 0 | AC89: 0 | AD89: 0 | AE89: 0 | AF89: 0 | AG89: 0 | AH89: 0 | AI89: 0 | AJ89: 0 | AK89: 0 | AL89: 0 | AM89: 0 | AN89: 0 | AO89: 0 | AP89: 0
C90: Interest Expense | E90: m€ | J90: =J88-J89 -> 0 | K90: =K88-K89 -> 0 | L90: 0 | M90: 0 | N90: 0 | O90: 0 | P90: 0 | Q90: 0 | R90: 0 | S90: 0 | T90: 0 | U90: 0 | V90: 1.371783316 | W90: 1.30319415 | X90: 1.234604984 | Y90: 1.166015818 | Z90: 1.097426653 | AA90: 1.028837487 | AB90: 0.960248321 | AC90: 0.8916591553 | AD90: 0.8230699895 | AE90: 0.7544808237 | AF90: 0.6858916579 | AG90: 0.6173024921 | AH90: 0.5487133263 | AI90: 0.4801241605 | AJ90: 0.4115349947 | AK90: 0.3429458289 | AL90: 0.2743566632 | AM90: 0.2057674974 | AN90: 0.1371783316 | AO90: 0.06858916579 | AP90: 0
B93: Profit and Loss
C94: IDC Balance | E94: m€ | J94: =I94+J89 -> 0 | K94: =J94+K89 -> 0.1 | L94: 0.3024 | M94: 0.6096576 | N94: 1.024289382 | O94: 1.548872328 | P94: 2.186045263 | Q94: 2.93851035 | R94: 3.809034598 | S94: 4.800451429 | T94: 5.915662263 | U94: 7.157638157 | V94: 7.157638157 | W94: 7.157638157 | X94: 7.157638157 | Y94: 7.157638157 | Z94: 7.157638157 | AA94: 7.157638157 | AB94: 7.157638157 | AC94: 7.157638157 | AD94: 7.157638157 | AE94: 7.157638157 | AF94: 7.157638157 | AG94: 7.157638157 | AH94: 7.157638157 | AI94: 7.157638157 | AJ94: 7.157638157 | AK94: 7.157638157 | AL94: 7.157638157 | AM94: 7.157638157 | AN94: 7.157638157 | AO94: 7.157638157 | AP94: 7.157638157
C95: Depreciation on IDC | E95: m€ | H95: =SUM(J95:AP95) -> 7.157638157 | J95: =J94*J45 -> 0 | K95: =K94*K45 -> 0 | L95: 0 | M95: 0 | N95: 0 | O95: 0 | P95: 0 | Q95: 0 | R95: 0 | S95: 0 | T95: 0 | U95: 0 | V95: 0.3578819079 | W95: 0.3578819079 | X95: 0.3578819079 | Y95: 0.3578819079 | Z95: 0.3578819079 | AA95: 0.3578819079 | AB95: 0.3578819079 | AC95: 0.3578819079 | AD95: 0.3578819079 | AE95: 0.3578819079 | AF95: 0.3578819079 | AG95: 0.3578819079 | AH95: 0.3578819079 | AI95: 0.3578819079 | AJ95: 0.3578819079 | AK95: 0.3578819079 | AL95: 0.3578819079 | AM95: 0.3578819079 | AN95: 0.3578819079 | AO95: 0.3578819079 | AP95: 0
C96: Accumulated Depreciation | E96: m€ | J96: =I96+J95 -> 0 | K96: =J96+K95 -> 0 | L96: 0 | M96: 0 | N96: 0 | O96: 0 | P96: 0 | Q96: 0 | R96: 0 | S96: 0 | T96: 0 | U96: 0 | V96: 0.3578819079 | W96: 0.7157638157 | X96: 1.073645724 | Y96: 1.431527631 | Z96: 1.789409539 | AA96: 2.147291447 | AB96: 2.505173355 | AC96: 2.863055263 | AD96: 3.220937171 | AE96: 3.578819079 | AF96: 3.936700986 | AG96: 4.294582894 | AH96: 4.652464802 | AI96: 5.01034671 | AJ96: 5.368228618 | AK96: 5.726110526 | AL96: 6.083992434 | AM96: 6.441874341 | AN96: 6.799756249 | AO96: 7.157638157 | AP96: 7.157638157
C98: Revenues | E98: m€ | J98: =J28 -> 0 | K98: =K28 -> 0 | L98: 0 | M98: 0 | N98: 0 | O98: 0 | P98: 0 | Q98: 0 | R98: 0 | S98: 0 | T98: 0 | U98: 0 | V98: 6.06 | W98: 6.1206 | X98: 6.181806 | Y98: 6.24362406 | Z98: 6.306060301 | AA98: 6.369120904 | AB98: 6.432812113 | AC98: 6.497140234 | AD98: 6.562111636 | AE98: 6.627732752 | AF98: 3.904839213 | AG98: 3.943887605 | AH98: 3.983326482 | AI98: 4.023159746 | AJ98: 4.063391344 | AK98: 4.104025257 | AL98: 4.14506551 | AM98: 4.186516165 | AN98: 4.228381327 | AO98: 4.27066514 | AP98: 0
C99: Less: Expenses | E99: m€ | J99: =J33 -> 0 | K99: =K33 -> 0 | L99: 0 | M99: 0 | N99: 0 | O99: 0 | P99: 0 | Q99: 0 | R99: 0 | S99: 0 | T99: 0 | U99: 0 | V99: 1.01 | W99: 1.0201 | X99: 1.030301 | Y99: 1.04060401 | Z99: 1.05101005 | AA99: 1.061520151 | AB99: 1.072135352 | AC99: 1.082856706 | AD99: 1.093685273 | AE99: 1.104622125 | AF99: 1.115668347 | AG99: 1.12682503 | AH99: 1.13809328 | AI99: 1.149474213 | AJ99: 1.160968955 | AK99: 1.172578645 | AL99: 1.184304431 | AM99: 1.196147476 | AN99: 1.20810895 | AO99: 1.22019004 | AP99: 0
C100: EBITDA | E100: m€ | J100: =J98-J99 -> 0 | K100: =K98-K99 -> 0 | L100: 0 | M100: 0 | N100: 0 | O100: 0 | P100: 0 | Q100: 0 | R100: 0 | S100: 0 | T100: 0 | U100: 0 | V100: 5.05 | W100: 5.1005 | X100: 5.151505 | Y100: 5.20302005 | Z100: 5.255050251 | AA100: 5.307600753 | AB100: 5.360676761 | AC100: 5.414283528 | AD100: 5.468426363 | AE100: 5.523110627 | AF100: 2.789170867 | AG100: 2.817062575 | AH100: 2.845233201 | AI100: 2.873685533 | AJ100: 2.902422388 | AK100: 2.931446612 | AL100: 2.960761078 | AM100: 2.990368689 | AN100: 3.020272376 | AO100: 3.0504751 | AP100: 0
C101: Less: Depreciation Base | E101: m€ | J101: =J46 -> 0 | K101: =K46 -> 0 | L101: 0 | M101: 0 | N101: 0 | O101: 0 | P101: 0 | Q101: 0 | R101: 0 | S101: 0 | T101: 0 | U101: 0 | V101: 2.5 | W101: 2.5 | X101: 2.5 | Y101: 2.5 | Z101: 2.5 | AA101: 2.5 | AB101: 2.5 | AC101: 2.5 | AD101: 2.5 | AE101: 2.5 | AF101: 2.5 | AG101: 2.5 | AH101: 2.5 | AI101: 2.5 | AJ101: 2.5 | AK101: 2.5 | AL101: 2.5 | AM101: 2.5 | AN101: 2.5 | AO101: 2.5 | AP101: 0
C102: Less: Depreciation IDC | E102: m€ | J102: =J95 -> 0 | K102: =K95 -> 0 | L102: 0 | M102: 0 | N102: 0 | O102: 0 | P102: 0 | Q102: 0 | R102: 0 | S102: 0 | T102: 0 | U102: 0 | V102: 0.3578819079 | W102: 0.3578819079 | X102: 0.3578819079 | Y102: 0.3578819079 | Z102: 0.3578819079 | AA102: 0.3578819079 | AB102: 0.3578819079 | AC102: 0.3578819079 | AD102: 0.3578819079 | AE102: 0.3578819079 | AF102: 0.3578819079 | AG102: 0.3578819079 | AH102: 0.3578819079 | AI102: 0.3578819079 | AJ102: 0.3578819079 | AK102: 0.3578819079 | AL102: 0.3578819079 | AM102: 0.3578819079 | AN102: 0.3578819079 | AO102: 0.3578819079 | AP102: 0
C103: EBIT | E103: m€ | J103: =J100-J101-J102 -> 0 | K103: =K100-K101-K102 -> 0 | L103: 0 | M103: 0 | N103: 0 | O103: 0 | P103: 0 | Q103: 0 | R103: 0 | S103: 0 | T103: 0 | U103: 0 | V103: 2.192118092 | W103: 2.242618092 | X103: 2.293623092 | Y103: 2.345138142 | Z103: 2.397168343 | AA103: 2.449718845 | AB103: 2.502794853 | AC103: 2.55640162 | AD103: 2.610544456 | AE103: 2.665228719 | AF103: -0.06871104119 | AG103: -0.04081933253 | AH103: -0.01264870677 | AI103: 0.01580362524 | AJ103: 0.04454048057 | AK103: 0.07356470445 | AL103: 0.1028791706 | AM103: 0.1324867814 | AN103: 0.1623904683 | AO103: 0.192593192 | AP103: 0
C104: Less: Interest Expense | E104: m€ | J104: =J90 -> 0 | K104: =K90 -> 0 | L104: 0 | M104: 0 | N104: 0 | O104: 0 | P104: 0 | Q104: 0 | R104: 0 | S104: 0 | T104: 0 | U104: 0 | V104: 1.371783316 | W104: 1.30319415 | X104: 1.234604984 | Y104: 1.166015818 | Z104: 1.097426653 | AA104: 1.028837487 | AB104: 0.960248321 | AC104: 0.8916591553 | AD104: 0.8230699895 | AE104: 0.7544808237 | AF104: 0.6858916579 | AG104: 0.6173024921 | AH104: 0.5487133263 | AI104: 0.4801241605 | AJ104: 0.4115349947 | AK104: 0.3429458289 | AL104: 0.2743566632 | AM104: 0.2057674974 | AN104: 0.1371783316 | AO104: 0.06858916579 | AP104: 0
C105: EBT | E105: m€ | J105: =J103-J104 -> 0 | K105: =K103-K104 -> 0 | L105: 0 | M105: 0 | N105: 0 | O105: 0 | P105: 0 | Q105: 0 | R105: 0 | S105: 0 | T105: 0 | U105: 0 | V105: 0.8203347764 | W105: 0.9394239422 | X105: 1.059018108 | Y105: 1.179122324 | Z105: 1.29974169 | AA105: 1.420881358 | AB105: 1.542546532 | AC105: 1.664742465 | AD105: 1.787474466 | AE105: 1.910747896 | AF105: -0.7546026991 | AG105: -0.6581218246 | AH105: -0.5613620331 | AI105: -0.4643205353 | AJ105: -0.3669945142 | AK105: -0.2693811245 | AL105: -0.1714774926 | AM105: -0.073280716 | AN105: 0.02521213668 | AO105: 0.1240040262 | AP105: 0
C106: Taxes | E106: m€ | F106: =Inputs!F32 -> 0.3 | J106: =J105*$F$106 -> 0 | K106: =K105*$F$106 -> 0 | L106: 0 | M106: 0 | N106: 0 | O106: 0 | P106: 0 | Q106: 0 | R106: 0 | S106: 0 | T106: 0 | U106: 0 | V106: 0.2461004329 | W106: 0.2818271826 | X106: 0.3177054324 | Y106: 0.3537366971 | Z106: 0.389922507 | AA106: 0.4262644075 | AB106: 0.4627639595 | AC106: 0.4994227395 | AD106: 0.5362423398 | AE106: 0.5732243687 | AF106: -0.2263808097 | AG106: -0.1974365474 | AH106: -0.1684086099 | AI106: -0.1392961606 | AJ106: -0.1100983542 | AK106: -0.08081433735 | AL106: -0.05144324777 | AM106: -0.0219842148 | AN106: 0.007563641003 | AO106: 0.03720120787 | AP106: 0
C107: Net Income | E107: m€ | J107: =J105-J106 -> 0 | K107: =K105-K106 -> 0 | L107: 0 | M107: 0 | N107: 0 | O107: 0 | P107: 0 | Q107: 0 | R107: 0 | S107: 0 | T107: 0 | U107: 0 | V107: 0.5742343435 | W107: 0.6575967595 | X107: 0.7413126756 | Y107: 0.8253856266 | Z107: 0.909819183 | AA107: 0.9946169508 | AB107: 1.079782572 | AC107: 1.165319726 | AD107: 1.251232126 | AE107: 1.337523527 | AF107: -0.5282218894 | AG107: -0.4606852772 | AH107: -0.3929534232 | AI107: -0.3250243747 | AJ107: -0.2568961599 | AK107: -0.1885667871 | AL107: -0.1200342448 | AM107: -0.0512965012 | AN107: 0.01764849567 | AO107: 0.08680281836 | AP107: 0
B109: Cash Flow post COD
C110: EBITDA | E110: m€ | J110: =J100 -> 0 | K110: =K100 -> 0 | L110: 0 | M110: 0 | N110: 0 | O110: 0 | P110: 0 | Q110: 0 | R110: 0 | S110: 0 | T110: 0 | U110: 0 | V110: 5.05 | W110: 5.1005 | X110: 5.151505 | Y110: 5.20302005 | Z110: 5.255050251 | AA110: 5.307600753 | AB110: 5.360676761 | AC110: 5.414283528 | AD110: 5.468426363 | AE110: 5.523110627 | AF110: 2.789170867 | AG110: 2.817062575 | AH110: 2.845233201 | AI110: 2.873685533 | AJ110: 2.902422388 | AK110: 2.931446612 | AL110: 2.960761078 | AM110: 2.990368689 | AN110: 3.020272376 | AO110: 3.0504751 | AP110: 0
C111: Less: Taxes | J111: =J106 -> 0 | K111: =K106 -> 0 | L111: 0 | M111: 0 | N111: 0 | O111: 0 | P111: 0 | Q111: 0 | R111: 0 | S111: 0 | T111: 0 | U111: 0 | V111: 0.2461004329 | W111: 0.2818271826 | X111: 0.3177054324 | Y111: 0.3537366971 | Z111: 0.389922507 | AA111: 0.4262644075 | AB111: 0.4627639595 | AC111: 0.4994227395 | AD111: 0.5362423398 | AE111: 0.5732243687 | AF111: -0.2263808097 | AG111: -0.1974365474 | AH111: -0.1684086099 | AI111: -0.1392961606 | AJ111: -0.1100983542 | AK111: -0.08081433735 | AL111: -0.05144324777 | AM111: -0.0219842148 | AN111: 0.007563641003 | AO111: 0.03720120787 | AP111: 0
C112: CFADS | J112: =J110-J111 -> 0 | K112: =K110-K111 -> 0 | L112: 0 | M112: 0 | N112: 0 | O112: 0 | P112: 0 | Q112: 0 | R112: 0 | S112: 0 | T112: 0 | U112: 0 | V112: 4.803899567 | W112: 4.818672817 | X112: 4.833799568 | Y112: 4.849283353 | Z112: 4.865127743 | AA112: 4.881336346 | AB112: 4.897912801 | AC112: 4.914860789 | AD112: 4.932184024 | AE112: 4.949886258 | AF112: 3.015551676 | AG112: 3.014499123 | AH112: 3.013641811 | AI112: 3.012981694 | AJ112: 3.012520743 | AK112: 3.01226095 | AL112: 3.012204326 | AM112: 3.012352904 | AN112: 3.012708735 | AO112: 3.013273892 | AP112: 0
C113: Less: Interest Expense | J113: =J104 -> 0 | K113: =K104 -> 0 | L113: 0 | M113: 0 | N113: 0 | O113: 0 | P113: 0 | Q113: 0 | R113: 0 | S113: 0 | T113: 0 | U113: 0 | V113: 1.371783316 | W113: 1.30319415 | X113: 1.234604984 | Y113: 1.166015818 | Z113: 1.097426653 | AA113: 1.028837487 | AB113: 0.960248321 | AC113: 0.8916591553 | AD113: 0.8230699895 | AE113: 0.7544808237 | AF113: 0.6858916579 | AG113: 0.6173024921 | AH113: 0.5487133263 | AI113: 0.4801241605 | AJ113: 0.4115349947 | AK113: 0.3429458289 | AL113: 0.2743566632 | AM113: 0.2057674974 | AN113: 0.1371783316 | AO113: 0.06858916579 | AP113: 0
C114: Less: Repayment | J114: =J86 -> 0 | K114: =K86 -> 0 | L114: 0 | M114: 0 | N114: 0 | O114: 0 | P114: 0 | Q114: 0 | R114: 0 | S114: 0 | T114: 0 | U114: 0 | V114: 2.286305526 | W114: 2.286305526 | X114: 2.286305526 | Y114: 2.286305526 | Z114: 2.286305526 | AA114: 2.286305526 | AB114: 2.286305526 | AC114: 2.286305526 | AD114: 2.286305526 | AE114: 2.286305526 | AF114: 2.286305526 | AG114: 2.286305526 | AH114: 2.286305526 | AI114: 2.286305526 | AJ114: 2.286305526 | AK114: 2.286305526 | AL114: 2.286305526 | AM114: 2.286305526 | AN114: 2.286305526 | AO114: 2.286305526 | AP114: 0
C115: Net Cash Flow | J115: =J112-J113-J114 -> 0 | K115: =K112-K113-K114 -> 0 | L115: 0 | M115: 0 | N115: 0 | O115: 0 | P115: 0 | Q115: 0 | R115: 0 | S115: 0 | T115: 0 | U115: 0 | V115: 1.145810725 | W115: 1.229173141 | X115: 1.312889057 | Y115: 1.396962008 | Z115: 1.481395565 | AA115: 1.566193332 | AB115: 1.651358954 | AC115: 1.736896107 | AD115: 1.822808508 | AE115: 1.909099908 | AF115: 0.04335449222 | AG115: 0.1108911043 | AH115: 0.1786229584 | AI115: 0.2465520069 | AJ115: 0.3146802217 | AK115: 0.3830095944 | AL115: 0.4515421368 | AM115: 0.5202798804 | AN115: 0.5892248772 | AO115: 0.6583791999 | AP115: 0
C116: Dividends | J116: =J115 -> 0 | K116: =K115 -> 0 | L116: 0 | M116: 0 | N116: 0 | O116: 0 | P116: 0 | Q116: 0 | R116: 0 | S116: 0 | T116: 0 | U116: 0 | V116: 1.145810725 | W116: 1.229173141 | X116: 1.312889057 | Y116: 1.396962008 | Z116: 1.481395565 | AA116: 1.566193332 | AB116: 1.651358954 | AC116: 1.736896107 | AD116: 1.822808508 | AE116: 1.909099908 | AF116: 0.04335449222 | AG116: 0.1108911043 | AH116: 0.1786229584 | AI116: 0.2465520069 | AJ116: 0.3146802217 | AK116: 0.3830095944 | AL116: 0.4515421368 | AM116: 0.5202798804 | AN116: 0.5892248772 | AO116: 0.6583791999 | AP116: 0
C118: Equity Cash Flow | E118: m€ | J118: =J116-J76 -> -0.8333333333 | K118: =K116-K76 -> -0.8533333333 | L118: -0.8738133333 | M118: -0.8947848533 | N118: -0.9162596898 | O118: -0.9382499224 | P118: -0.9607679205 | Q118: -0.9838263506 | R118: -1.007438183 | S118: -1.031616699 | T118: -1.0563755 | U118: -1.081728512 | V118: 1.145810725 | W118: 1.229173141 | X118: 1.312889057 | Y118: 1.396962008 | Z118: 1.481395565 | AA118: 1.566193332 | AB118: 1.651358954 | AC118: 1.736896107 | AD118: 1.822808508 | AE118: 1.909099908 | AF118: 0.04335449222 | AG118: 0.1108911043 | AH118: 0.1786229584 | AI118: 0.2465520069 | AJ118: 0.3146802217 | AK118: 0.3830095944 | AL118: 0.4515421368 | AM118: 0.5202798804 | AN118: 0.5892248772 | AO118: 0.6583791999 | AP118: 0
C119: Equity IRR | E119: % | F119: =XIRR(J118:AP118,J7:AP7) -> 0.06595979631
C121: DSCR | H121: =MIN(J121:AP121) -> 1.014586681 | J121: =IFERROR(J112/(J113+J114),FALSE) -> FALSE | K121: =IFERROR(K112/(K113+K114),FALSE) -> FALSE | L121: FALSE | M121: FALSE | N121: FALSE | O121: FALSE | P121: FALSE | Q121: FALSE | R121: FALSE | S121: FALSE | T121: FALSE | U121: FALSE | V121: 1.313226599 | W121: 1.342435785 | X121: 1.372883393 | Y121: 1.404644258 | Z121: 1.437799296 | AA121: 1.472436129 | AB121: 1.508649796 | AC121: 1.546543553 | AD121: 1.586229775 | AE121: 1.627830991 | AF121: 1.014586681 | AG121: 1.038190797 | AH121: 1.063005916 | AI121: 1.089122817 | AJ121: 1.116641521 | AK121: 1.145672491 | AL121: 1.176338034 | AM121: 1.208773931 | AN121: 1.24313134 | AO121: 1.279579041 | AP121: FALSE
B123: Balance Sheet
C124: Equity
D125: Opening Balance | J125: =I129 -> 0 | K125: =J129 -> 0.8333333333 | L125: 1.686666667 | M125: 2.56048 | N125: 3.455264853 | O125: 4.371524543 | P125: 5.309774466 | Q125: 6.270542386 | R125: 7.254368737 | S125: 8.26180692 | T125: 9.293423619 | U125: 10.34979912 | V125: 11.43152763 | W125: 10.85995125 | X125: 10.28837487 | Y125: 9.716798487 | Z125: 9.145222105 | AA125: 8.573645724 | AB125: 8.002069342 | AC125: 7.43049296 | AD125: 6.858916579 | AE125: 6.287340197 | AF125: 5.715763816 | AG125: 5.144187434 | AH125: 4.572611053 | AI125: 4.001034671 | AJ125: 3.429458289 | AK125: 2.857881908 | AL125: 2.286305526 | AM125: 1.714729145 | AN125: 1.143152763 | AO125: 0.5715763816 | AP125: 0
D126: Add: Equity Issued | J126: =J76 -> 0.8333333333 | K126: =K76 -> 0.8533333333 | L126: 0.8738133333 | M126: 0.8947848533 | N126: 0.9162596898 | O126: 0.9382499224 | P126: 0.9607679205 | Q126: 0.9838263506 | R126: 1.007438183 | S126: 1.031616699 | T126: 1.0563755 | U126: 1.081728512 | V126: 0 | W126: 0 | X126: 0 | Y126: 0 | Z126: 0 | AA126: 0 | AB126: 0 | AC126: 0 | AD126: 0 | AE126: 0 | AF126: 0 | AG126: 0 | AH126: 0 | AI126: 0 | AJ126: 0 | AK126: 0 | AL126: 0 | AM126: 0 | AN126: 0 | AO126: 0 | AP126: 0
D127: Add: Net Income | J127: =J107 -> 0 | K127: =K107 -> 0 | L127: 0 | M127: 0 | N127: 0 | O127: 0 | P127: 0 | Q127: 0 | R127: 0 | S127: 0 | T127: 0 | U127: 0 | V127: 0.5742343435 | W127: 0.6575967595 | X127: 0.7413126756 | Y127: 0.8253856266 | Z127: 0.909819183 | AA127: 0.9946169508 | AB127: 1.079782572 | AC127: 1.165319726 | AD127: 1.251232126 | AE127: 1.337523527 | AF127: -0.5282218894 | AG127: -0.4606852772 | AH127: -0.3929534232 | AI127: -0.3250243747 | AJ127: -0.2568961599 | AK127: -0.1885667871 | AL127: -0.1200342448 | AM127: -0.0512965012 | AN127: 0.01764849567 | AO127: 0.08680281836 | AP127: 0
D128: Less: Dividends | J128: =J116 -> 0 | K128: =K116 -> 0 | L128: 0 | M128: 0 | N128: 0 | O128: 0 | P128: 0 | Q128: 0 | R128: 0 | S128: 0 | T128: 0 | U128: 0 | V128: 1.145810725 | W128: 1.229173141 | X128: 1.312889057 | Y128: 1.396962008 | Z128: 1.481395565 | AA128: 1.566193332 | AB128: 1.651358954 | AC128: 1.736896107 | AD128: 1.822808508 | AE128: 1.909099908 | AF128: 0.04335449222 | AG128: 0.1108911043 | AH128: 0.1786229584 | AI128: 0.2465520069 | AJ128: 0.3146802217 | AK128: 0.3830095944 | AL128: 0.4515421368 | AM128: 0.5202798804 | AN128: 0.5892248772 | AO128: 0.6583791999 | AP128: 0
D129: Closing | J129: =J125+J126+J127-J128 -> 0.8333333333 | K129: =K125+K126+K127-K128 -> 1.686666667 | L129: 2.56048 | M129: 3.455264853 | N129: 4.371524543 | O129: 5.309774466 | P129: 6.270542386 | Q129: 7.254368737 | R129: 8.26180692 | S129: 9.293423619 | T129: 10.34979912 | U129: 11.43152763 | V129: 10.85995125 | W129: 10.28837487 | X129: 9.716798487 | Y129: 9.145222105 | Z129: 8.573645724 | AA129: 8.002069342 | AB129: 7.43049296 | AC129: 6.858916579 | AD129: 6.287340197 | AE129: 5.715763816 | AF129: 5.144187434 | AG129: 4.572611053 | AH129: 4.001034671 | AI129: 3.429458289 | AJ129: 2.857881908 | AK129: 2.286305526 | AL129: 1.714729145 | AM129: 1.143152763 | AN129: 0.5715763816 | AO129: 0 | AP129: 0
C131: Plant Balance
D132: Plant | J132: =J44 -> 4.166666667 | K132: =K44 -> 8.333333333 | L132: 12.5 | M132: 16.66666667 | N132: 20.83333333 | O132: 25 | P132: 29.16666667 | Q132: 33.33333333 | R132: 37.5 | S132: 41.66666667 | T132: 45.83333333 | U132: 50 | V132: 50 | W132: 50 | X132: 50 | Y132: 50 | Z132: 50 | AA132: 50 | AB132: 50 | AC132: 50 | AD132: 50 | AE132: 50 | AF132: 50 | AG132: 50 | AH132: 50 | AI132: 50 | AJ132: 50 | AK132: 50 | AL132: 50 | AM132: 50 | AN132: 50 | AO132: 50 | AP132: 50
D133: Less: Acc Depreciation | J133: =-J47 -> 0 | K133: =-K47 -> 0 | L133: 0 | M133: 0 | N133: 0 | O133: 0 | P133: 0 | Q133: 0 | R133: 0 | S133: 0 | T133: 0 | U133: 0 | V133: -2.5 | W133: -5 | X133: -7.5 | Y133: -10 | Z133: -12.5 | AA133: -15 | AB133: -17.5 | AC133: -20 | AD133: -22.5 | AE133: -25 | AF133: -27.5 | AG133: -30 | AH133: -32.5 | AI133: -35 | AJ133: -37.5 | AK133: -40 | AL133: -42.5 | AM133: -45 | AN133: -47.5 | AO133: -50 | AP133: -50
D134: IDC Accumulated | J134: =J94 -> 0 | K134: =K94 -> 0.1 | L134: 0.3024 | M134: 0.6096576 | N134: 1.024289382 | O134: 1.548872328 | P134: 2.186045263 | Q134: 2.93851035 | R134: 3.809034598 | S134: 4.800451429 | T134: 5.915662263 | U134: 7.157638157 | V134: 7.157638157 | W134: 7.157638157 | X134: 7.157638157 | Y134: 7.157638157 | Z134: 7.157638157 | AA134: 7.157638157 | AB134: 7.157638157 | AC134: 7.157638157 | AD134: 7.157638157 | AE134: 7.157638157 | AF134: 7.157638157 | AG134: 7.157638157 | AH134: 7.157638157 | AI134: 7.157638157 | AJ134: 7.157638157 | AK134: 7.157638157 | AL134: 7.157638157 | AM134: 7.157638157 | AN134: 7.157638157 | AO134: 7.157638157 | AP134: 7.157638157
D135: Less: Acc IDC Depreciation | J135: =-J96 -> 0 | K135: =-K96 -> 0 | L135: 0 | M135: 0 | N135: 0 | O135: 0 | P135: 0 | Q135: 0 | R135: 0 | S135: 0 | T135: 0 | U135: 0 | V135: -0.3578819079 | W135: -0.7157638157 | X135: -1.073645724 | Y135: -1.431527631 | Z135: -1.789409539 | AA135: -2.147291447 | AB135: -2.505173355 | AC135: -2.863055263 | AD135: -3.220937171 | AE135: -3.578819079 | AF135: -3.936700986 | AG135: -4.294582894 | AH135: -4.652464802 | AI135: -5.01034671 | AJ135: -5.368228618 | AK135: -5.726110526 | AL135: -6.083992434 | AM135: -6.441874341 | AN135: -6.799756249 | AO135: -7.157638157 | AP135: -7.157638157
D136: Total Assets | J136: =SUM(J132:J135) -> 4.166666667 | K136: =SUM(K132:K135) -> 8.433333333 | L136: 12.8024 | M136: 17.27632427 | N136: 21.85762272 | O136: 26.54887233 | P136: 31.35271193 | Q136: 36.27184368 | R136: 41.3090346 | S136: 46.4671181 | T136: 51.7489956 | U136: 57.15763816 | V136: 54.29975625 | W136: 51.44187434 | X136: 48.58399243 | Y136: 45.72611053 | Z136: 42.86822862 | AA136: 40.01034671 | AB136: 37.1524648 | AC136: 34.29458289 | AD136: 31.43670099 | AE136: 28.57881908 | AF136: 25.72093717 | AG136: 22.86305526 | AH136: 20.00517335 | AI136: 17.14729145 | AJ136: 14.28940954 | AK136: 11.43152763 | AL136: 8.573645724 | AM136: 5.715763816 | AN136: 2.857881908 | AO136: -1.154631946e-14 | AP136: -1.154631946e-14
C138: Total Debt | J138: =J87 -> 3.333333333 | K138: =K87 -> 6.746666667 | L138: 10.24192 | M138: 13.82105941 | N138: 17.48609817 | O138: 21.23909786 | P138: 25.08216954 | Q138: 29.01747495 | R138: 33.04722768 | S138: 37.17369448 | T138: 41.39919648 | U138: 45.72611053 | V138: 43.439805 | W138: 41.15349947 | X138: 38.86719395 | Y138: 36.58088842 | Z138: 34.29458289 | AA138: 32.00827737 | AB138: 29.72197184 | AC138: 27.43566632 | AD138: 25.14936079 | AE138: 22.86305526 | AF138: 20.57674974 | AG138: 18.29044421 | AH138: 16.00413868 | AI138: 13.71783316 | AJ138: 11.43152763 | AK138: 9.145222105 | AL138: 6.858916579 | AM138: 4.572611053 | AN138: 2.286305526 | AO138: 0 | AP138: 0
C139: Total Equity | J139: =J129 -> 0.8333333333 | K139: =K129 -> 1.686666667 | L139: 2.56048 | M139: 3.455264853 | N139: 4.371524543 | O139: 5.309774466 | P139: 6.270542386 | Q139: 7.254368737 | R139: 8.26180692 | S139: 9.293423619 | T139: 10.34979912 | U139: 11.43152763 | V139: 10.85995125 | W139: 10.28837487 | X139: 9.716798487 | Y139: 9.145222105 | Z139: 8.573645724 | AA139: 8.002069342 | AB139: 7.43049296 | AC139: 6.858916579 | AD139: 6.287340197 | AE139: 5.715763816 | AF139: 5.144187434 | AG139: 4.572611053 | AH139: 4.001034671 | AI139: 3.429458289 | AJ139: 2.857881908 | AK139: 2.286305526 | AL139: 1.714729145 | AM139: 1.143152763 | AN139: 0.5715763816 | AO139: 0 | AP139: 0
C140: Total | J140: =SUM(J138:J139) -> 4.166666667 | K140: =SUM(K138:K139) -> 8.433333333 | L140: 12.8024 | M140: 17.27632427 | N140: 21.85762272 | O140: 26.54887233 | P140: 31.35271193 | Q140: 36.27184368 | R140: 41.3090346 | S140: 46.4671181 | T140: 51.7489956 | U140: 57.15763816 | V140: 54.29975625 | W140: 51.44187434 | X140: 48.58399243 | Y140: 45.72611053 | Z140: 42.86822862 | AA140: 40.01034671 | AB140: 37.1524648 | AC140: 34.29458289 | AD140: 31.43670099 | AE140: 28.57881908 | AF140: 25.72093717 | AG140: 22.86305526 | AH140: 20.00517335 | AI140: 17.14729145 | AJ140: 14.28940954 | AK140: 11.43152763 | AL140: 8.573645724 | AM140: 5.715763816 | AN140: 2.857881908 | AO140: 0 | AP140: 0
H142: =AND(J142:AP142) -> TRUE | J142: =ROUND(J140-J136,0)=0 -> TRUE | K142: =ROUND(K140-K136,0)=0 -> TRUE | L142: TRUE | M142: TRUE | N142: TRUE | O142: TRUE | P142: TRUE | Q142: TRUE | R142: TRUE | S142: TRUE | T142: TRUE | U142: TRUE | V142: TRUE | W142: TRUE | X142: TRUE | Y142: TRUE | Z142: TRUE | AA142: TRUE | AB142: TRUE | AC142: TRUE | AD142: TRUE | AE142: TRUE | AF142: TRUE | AG142: TRUE | AH142: TRUE | AI142: TRUE | AJ142: TRUE | AK142: TRUE | AL142: TRUE | AM142: TRUE | AN142: TRUE | AO142: TRUE | AP142: TRUE
B143: Graph
J144: =IF(J8,J7,NA()) ->  | K144: =IF(K8,K7,NA()) ->  | V144: 2022-01-13 | W144: 2023-01-14 | X144: 2024-01-15 | Y144: 2025-01-16 | Z144: 2026-01-17 | AA144: 2027-01-18 | AB144: 2028-01-19 | AC144: 2029-01-20 | AD144: 2030-01-21 | AE144: 2031-01-22 | AF144: 2032-01-23 | AG144: 2033-01-24 | AH144: 2034-01-25 | AI144: 2035-01-26 | AJ144: 2036-01-27 | AK144: 2037-01-28 | AL144: 2038-01-29 | AM144: 2039-01-30 | AN144: 2040-01-31 | AO144: 2041-02-01
C145: CFADS | J145: =J112 -> 0 | K145: =K112 -> 0 | L145: 0 | M145: 0 | N145: 0 | O145: 0 | P145: 0 | Q145: 0 | R145: 0 | S145: 0 | T145: 0 | U145: 0 | V145: 4.803899567 | W145: 4.818672817 | X145: 4.833799568 | Y145: 4.849283353 | Z145: 4.865127743 | AA145: 4.881336346 | AB145: 4.897912801 | AC145: 4.914860789 | AD145: 4.932184024 | AE145: 4.949886258 | AF145: 3.015551676 | AG145: 3.014499123 | AH145: 3.013641811 | AI145: 3.012981694 | AJ145: 3.012520743 | AK145: 3.01226095 | AL145: 3.012204326 | AM145: 3.012352904 | AN145: 3.012708735 | AO145: 3.013273892 | AP145: 0
C146: Debt Service | J146: =J86+J90 -> 0 | K146: =K86+K90 -> 0 | L146: 0 | M146: 0 | N146: 0 | O146: 0 | P146: 0 | Q146: 0 | R146: 0 | S146: 0 | T146: 0 | U146: 0 | V146: 3.658088842 | W146: 3.589499676 | X146: 3.52091051 | Y146: 3.452321345 | Z146: 3.383732179 | AA146: 3.315143013 | AB146: 3.246553847 | AC146: 3.177964682 | AD146: 3.109375516 | AE146: 3.04078635 | AF146: 2.972197184 | AG146: 2.903608018 | AH146: 2.835018853 | AI146: 2.766429687 | AJ146: 2.697840521 | AK146: 2.629251355 | AL146: 2.560662189 | AM146: 2.492073024 | AN146: 2.423483858 | AO146: 2.354894692 | AP146: 0
